[Event "Centenary THK University 2019"]
[Site "Ankara"]
[Date "2019.05.17"]
[Round "1"]
[White "Buker, Muhittin"]
[Black "Banci, Dogancan"]
[Result "1-0"]
[ECO "A59"]
[WhiteElo "1993"]
[BlackElo "1566"]
[Annotator "NA RC"]
[PlyCount "51"]
[EventDate "2019.05.17"]
[EventType "swiss"]
[EventCountry "TUR"]
[SourceTitle "playchess.com"]
[Source "ChessBase"]
[SourceQuality "1"]
[TimeControl "5400+30"]

1. d4 {[%emt 0:30:30]} Nf6 {[%emt 0:30:30]} 2. c4 {[%emt 0:00:30]} c5 {[%emt 0:00:30]} 3. d5 {[%emt 0:00:00]} b5 {[%emt 0:00:00]} 4. cxb5 {[%emt 0:00:00]} a6 {[%emt 0:00:00]} 5. bxa6 {[%emt 0:00:00]} g6 {[%emt 0:00:30]} 6. Nc3 {[%emt 0:00:00]} Bxa6 {[%emt 0:00:30]} 7. e4 {[%emt 0:00:00]} Bxf1 {[%emt 0:00:30]} 8. Kxf1 {[%emt 0:00:00]} d6 {[%emt 0:00:00]} 9. g3 {[%emt 0:00:30]} Bg7 {[%emt 0:00:00]} 10. Kg2 {[%emt 0:00:30]} O-O {[%emt 0:00:30]} 11. Nf3 {[%emt 0:00:00]} Nbd7 {[%emt 0:01:30]} 12. Re1 {[%emt 0:00:00]} Qa5 {[%emt 0:03:30]} 13. h3 {[%emt 0:04:30]} Rfb8 {[%emt 0:03:30]} 14. e5 {[%emt 0:04:30] A59: Benko/Volga Gambit: White castles by hand} Ne8 {[%emt 0:04:30]} (14... dxe5 15. Nxe5 Nxe5 16. Rxe5 Rb7 17. Qe2 Qb6 18. a4 Kf8 19. Ra3 Ne8 20. Re3 Bh6 21. Re6 fxe6 22. Bxh6+ Kg8 23. Rb3 {1-0 (23) Sargissian,G (2678)-Caruana,F (2662) Ohrid 2009}) 15. exd6 {[%emt 0:06:30]} exd6 {[%emt 0:00:30]} 16. Re7 {[%emt 0:01:30]} Ne5 $146 {[%emt 0:13:30]} ({Predecessor:} 16... Nb6 17. Ne4 Nc4 18. Qe2 Nxb2 19. Neg5 c4 20. Nxf7 Qxd5 21. Bxb2 c3 22. Bxc3 Bxc3 {0-1 (39) Chaney,R-Cooley,T corr 1997}) 17. Nxe5 {[%emt 0:01:30]} Bxe5 {[%emt 0:00:30]} 18. Qf3 {[%emt 0:00:30]} f6 {[%emt 0:05:30]} 19. Qg4 {[%emt 0:00:30]} f5 $1 {[%emt 0:10:30]} ({Not} 19... Bxc3 20. Qe6+ Kh8 21. Qf7 Bxb2 22. Qxh7#) 20. Qh4 {[%emt 0:00:30]} Ng7 $1 {[%emt 0:01:30]} 21. Bf4 {[%emt 0:09:30]} Rb4 {[%emt 0:17:43]} (21... Bd4 $16) 22. Re1 {[%emt 0:04:30]} ({Stronger than} 22. Qh6 Bf6 $11) 22... Rf8 $2 {[%emt 0:03:30]} (22... Bd4 23. Qh6 Qd8) 23. R1xe5 {[%emt 0:01:30]} dxe5 {[%emt 0:00:21] [#]} 24. Bxe5 $18 {[%emt 0:00:30]} Rxh4 {[%emt 0:02:15]} 25. Rxg7+ {[%emt 0:00:00]} Kh8 {[%emt 0:00:00]} 26. Rxg6+ {[%emt 0:00:00]} 1-0

[Event "Centenary THK University 2019"]
[Site "Ankara"]
[Date "2019.05.17"]
[Round "1"]
[White "Alkan, Ferman"]
[Black "Arkac, Alp"]
[Result "1-0"]
[ECO "D53"]
[WhiteElo "1876"]
[BlackElo "1405"]
[Annotator "NA RC"]
[PlyCount "73"]
[EventDate "2019.05.17"]
[EventType "swiss"]
[EventCountry "TUR"]
[SourceTitle "playchess.com"]
[Source "ChessBase"]
[SourceQuality "1"]
[TimeControl "5400+30"]

1. d4 {[%emt 0:30:30]} d5 {[%emt 0:30:30]} 2. c4 {[%emt 0:00:30]} e6 {[%emt 0:00:00]} 3. Nc3 {[%emt 0:00:00]} Nf6 {[%emt 0:00:00]} 4. Bg5 {[%emt 0:00:00]} Be7 {[%emt 0:00:30]} 5. e3 {[%emt 0:00:00]} a6 {[%emt 0:00:00]} 6. Nf3 {[%emt 0:00:00]} dxc4 {[%emt 0:01:00]} 7. a4 {[%emt 0:00:30]} O-O {[%emt 0:00:30]} 8. Bxc4 {[%emt 0:00:30]} Nbd7 {[%emt 0:00:30]} 9. O-O {[%emt 0:00:00]} Nb6 {[%emt 0:01:30] D53: Queen's Gambit Declined: 4 Bg5 Be7: Early deviations} 10. Bd3 {[%emt 0:00:00]} Nbd5 $146 {[%emt 0:01:30]} ({Predecessor:} 10... h6 11. Bh4 c5 12. dxc5 Bxc5 13. Qe2 Be7 14. Rfd1 Nbd5 15. Nxd5 Nxd5 16. Bg3 Qe8 17. Ne5 {½-½ (58) Ivana Maria,F (1999)-Phiri,R (2166) Gauteng 2011}) 11. Rc1 {[%emt 0:00:30]} c6 {[%emt 0:03:30]} 12. Ne5 {[%emt 0:03:30]} h6 {[%emt 0:00:30]} 13. Bh4 {[%emt 0:00:30]} Qb6 {[%emt 0:02:30]} 14. Nc4 {[%emt 0:04:30]} Qd8 {[%emt 0:00:30]} 15. Qf3 {[%emt 0:02:30]} Nxc3 {[%emt 0:02:30]} 16. bxc3 {[%emt 0:00:30]} c5 {[%emt 0:02:30]} 17. Rb1 {[%emt 0:00:30]} Nd5 {[%emt 0:02:30]} 18. Bxe7 {[%emt 0:00:30]} Qxe7 {[%emt 0:01:30]} 19. Rfc1 {[%emt 0:00:00]} Rb8 {[%emt 0:04:30]} 20. e4 {[%emt 0:02:00]} Nf6 {[%emt 0:02:30]} 21. e5 {[%emt 0:00:30]} Nd5 {[%emt 0:00:30]} 22. Qe4 {[%emt 0:01:30]} f5 {[%emt 0:01:30]} 23. exf6 $1 {[%emt 0:01:30]} Nxf6 {[%emt 0:01:30]} 24. Qe5 {[%emt 0:01:30]} Bd7 {[%emt 0:01:30]} 25. h3 {[%emt 0:00:30]} Bxa4 {[%emt 0:01:30]} 26. Nb6 {[%emt 0:01:30]} Bc6 {[%emt 0:03:30]} 27. Re1 {[%emt 0:01:30]} cxd4 {[%emt 0:00:30]} 28. cxd4 {[%emt 0:00:30]} Rbe8 {[%emt 0:04:30]} (28... Rbd8 $11) 29. Bc4 {[%emt 0:02:30]} Kh8 {[%emt 0:02:30]} (29... Qd8 $14 30. Bxe6+ Kh8) 30. d5 {[%emt 0:00:30]} ({Worse is} 30. Bxe6 {[#]} Be4 $1 $17 {[%mdl 512]}) 30... Nd7 {[%emt 0:04:30]} (30... Bd7 $16) 31. Nxd7 {[%emt 0:00:00]} ({Stronger than} 31. Qxe6 Qd8 $11) 31... Bxd7 {[%emt 0:00:30]} 32. Rxb7 {[%emt 0:00:00]} Qf7 {[%emt 0:03:30]} 33. dxe6 {[%emt 0:01:30]} Qxf2+ $2 {[%emt 0:00:30]} (33... Bxe6 34. Rxf7 Bxf7) 34. Kh1 {[%emt 0:00:30]} ({Not} 34. Kh2 Rf5 $18) 34... Rg8 $2 {[%emt 0:04:09]} (34... Rf5 35. Qc3 Rg5) 35. Rxd7 {[%emt 0:00:00]} Qh4 {[%emt 0:03:23]} 36. Re4 {[%emt 0:01:00]} Qf2 {[%emt 0:00:48]} 37. e7 {[%emt 0:00:30]} 1-0

[Event "Centenary THK University 2019"]
[Site "Ankara"]
[Date "2019.05.17"]
[Round "1"]
[White "Sekerci, Berkin"]
[Black "Genc, Mehmet Emin"]
[Result "0-1"]
[ECO "B01"]
[WhiteElo "1752"]
[BlackElo "1664"]
[Annotator "NA RC"]
[PlyCount "78"]
[EventDate "2019.05.17"]
[EventType "swiss"]
[EventCountry "TUR"]
[SourceTitle "playchess.com"]
[Source "ChessBase"]
[SourceQuality "1"]
[TimeControl "5400+30"]

1. e4 {[%emt 0:30:30]} d5 {[%emt 0:30:30]} 2. exd5 {[%emt 0:04:30]} Nf6 {[%emt 0:00:00]} 3. d4 {[%emt 0:00:30]} Bg4 {[%emt 0:00:00]} 4. Bb5+ {[%emt 0:00:30]} Nbd7 {[%emt 0:00:30]} 5. f3 {[%emt 0:00:30]} Bf5 {[%emt 0:00:30]} 6. Nc3 {[%emt 0:00:30]} a6 {[%emt 0:00:30]} 7. Bd3 {[%emt 0:05:30]} Bg6 {[%emt 0:01:30]} 8. Nge2 {[%emt 0:00:30]} Nb6 {[%emt 0:00:30]} 9. O-O {[%emt 0:00:30]} Nbxd5 {[%emt 0:00:30]} 10. Nxd5 {[%emt 0:00:30]} Qxd5 {[%emt 0:00:30]} 11. c4 {[%emt 0:00:30]} Qd7 {[%emt 0:01:30]} 12. Re1 {[%emt 0:02:30]} O-O-O {[%emt 0:00:30]} 13. Be3 {[%emt 0:01:30]} Bxd3 {[%emt 0:03:30]} 14. Qxd3 {[%emt 0:00:30]} e5 {[%emt 0:00:00]} 15. d5 {[%emt 0:01:30]} Bb4 {[%emt 0:00:00]} 16. Red1 {[%emt 0:01:30]} c6 {[%emt 0:01:30]} 17. a3 {[%emt 0:01:30]} Ba5 {[%emt 0:00:30]} 18. b4 {[%emt 0:00:30]} Bc7 {[%emt 0:00:30]} 19. Nc3 {[%emt 0:00:30]} Rhe8 {[%emt 0:04:30]} 20. Rac1 {[%emt 0:03:30]} e4 {[%emt 0:02:30]} 21. fxe4 {[%emt 0:03:30]} Qg4 {[%emt 0:00:30]} 22. b5 {[%emt 0:01:30]} Nxe4 {[%emt 0:13:30]} 23. bxc6 {[%emt 0:01:30]} Ng5 {[%emt 0:19:45]} 24. cxb7+ {[%emt 0:01:30]} Kb8 {[%emt 0:01:30]} 25. Bxg5 {[%emt 0:00:30]} Qxg5 {[%emt 0:00:25]} 26. c5 {[%emt 0:00:30]} Bxh2+ {[%emt 0:03:51]} 27. Kxh2 {[%emt 0:01:30]} Re3 {[%emt 0:00:12]} 28. Qd2 {[%emt 0:01:30]} Rde8 {[%emt 0:02:06]} 29. d6 {[%emt 0:04:30]} Qe5+ {[%emt 0:05:54]} 30. Kg1 {[%emt 0:00:30]} Qxc5 {[%emt 0:00:12]} 31. Qd4 {[%emt 0:02:30]} Re1+ {[%emt 0:00:42]} 32. Kh2 {[%emt 0:03:30]} Qh5+ {[%emt 0:01:49]} 33. Kg3 {[%emt 0:00:30]} R8e3+ {[%emt 0:00:00]} 34. Qxe3 {[%emt 0:01:30]} Rxe3+ {[%emt 0:00:04]} 35. Kf2 {[%emt 0:00:30]} Rxc3 {[%emt 0:00:35]} 36. d7 {[%emt 0:01:30]} Qh4+ {[%emt 0:01:45]} 37. Kf1 {[%emt 0:00:30]} Rxc1 {[%emt 0:02:58]} 38. Rxc1 {[%emt 0:00:00]} Kxb7 {[%emt 0:00:42]} 39. Rc8 {[%emt 0:00:00]} Qf6+ {[%emt 0:00:17]} 0-1

[Event "Centenary THK University 2019"]
[Site "Ankara"]
[Date "2019.05.17"]
[Round "1"]
[White "Ugur, Cem"]
[Black "Celikel, Fatih"]
[Result "1-0"]
[ECO "B33"]
[WhiteElo "1593"]
[BlackElo "1868"]
[Annotator "NA RC"]
[PlyCount "70"]
[EventDate "2019.05.17"]
[EventType "swiss"]
[EventCountry "TUR"]
[SourceTitle "playchess.com"]
[Source "ChessBase"]
[SourceQuality "1"]
[TimeControl "5400+30"]

1. e4 {[%emt 0:30:30]} c5 {[%emt 0:30:30]} 2. Nf3 {[%emt 0:00:00]} Nc6 {[%emt 0:00:30]} 3. d4 {[%emt 0:01:00]} cxd4 {[%emt 0:00:30]} 4. Nxd4 {[%emt 0:00:00]} Nf6 {[%emt 0:03:30]} 5. Nc3 {[%emt 0:00:00]} e5 {[%emt 0:02:30]} 6. Ndb5 {[%emt 0:00:00]} d6 {[%emt 0:01:30]} 7. Bg5 {[%emt 0:00:00]} a6 {[%emt 0:01:30]} 8. Na3 {[%emt 0:00:00]} b5 {[%emt 0:05:30]} 9. Nd5 {[%emt 0:00:00]} Be7 {[%emt 0:00:30]} 10. Bxf6 {[%emt 0:00:30]} Bxf6 {[%emt 0:00:30]} 11. c3 {[%emt 0:00:30]} O-O {[%emt 0:02:30]} 12. h4 {[%emt 0:13:30]} g6 {[%emt 0:11:30] B33: Sicilian: Pelikan and Sveshnikov Variations} 13. h5 {[%emt 0:02:30]} (13. g3 Bg7 14. Nc2 Ne7 15. Nce3 h5 16. Be2 Nxd5 17. Nxd5 Be6 18. g4 hxg4 19. Bxg4 Bh6 20. h5 {½-½ (32) Kraft,D (2467)-Wenzel,S (2436) GER email 2016}) 13... Bg5 {[%emt 0:00:30]} 14. Nc2 {[%emt 0:09:30]} Be6 {[%emt 0:00:30]} 15. Nce3 {[%emt 0:01:30]} Ne7 {[%emt 0:05:30]} 16. Bd3 $146 {[%emt 0:06:30]} ({Predecessor:} 16. Be2 $11 {keeps the balance.} Nxd5 17. Nxd5 Kg7 18. Qd3 f5 19. Bf3 Rb8 20. hxg6 hxg6 21. exf5 Bxf5 {½-½ (29) Eremin,N (2074)-Kover,W (2198) ICCF email 2013}) 16... Rb8 {[%emt 0:05:30]} 17. Qf3 {[%emt 0:03:30]} Bxd5 {[%emt 0:04:30]} 18. Nxd5 {[%emt 0:01:30]} Nxd5 {[%emt 0:02:17]} 19. exd5 {[%emt 0:01:30]} e4 {[%emt 0:00:22]} 20. Bxe4 {[%emt 0:12:45]} Qe7 {[%emt 0:01:13]} 21. O-O {[%emt 0:01:51]} b4 {[%emt 0:02:57]} 22. Rae1 {[%emt 0:02:14]} bxc3 {[%emt 0:04:35]} 23. Qxc3 {[%emt 0:04:30]} Rfc8 {[%emt 0:05:04]} 24. Qd3 {[%emt 0:00:54]} Qf6 {[%emt 0:01:01]} 25. hxg6 {[%emt 0:00:55]} hxg6 {[%emt 0:00:10]} 26. f4 {[%emt 0:00:39]} Bh6 {[%emt 0:03:11]} 27. Rf3 {[%emt 0:03:15]} (27. f5 $11 {keeps the balance.} g5 28. b3 (28. Qxa6 Ra8 $11)) 27... Rxb2 {[%emt 0:00:52]} 28. Bxg6 $19 {[%emt 0:01:56]} (28. f5 $17 g5 29. Rf2 (29. Qxa6 Re8 $15)) 28... fxg6 {[%emt 0:01:57]} 29. Re6 $2 {[%emt 0:00:12]} (29. Qe3) 29... Rc1+ {[%emt 0:00:00]} 30. Rf1 {[%emt 0:00:29]} Rxf1+ {[%emt 0:00:40]} 31. Qxf1 {[%emt 0:02:02]} Qd4+ {[%emt 0:01:23]} 32. Kh1 {[%emt 0:00:15]} Rd2 {[%emt 0:00:46]} 33. Rxg6+ {[%emt 0:00:20]} Kh7 {[%emt 0:00:09]} 34. Rxh6+ {[%emt 0:00:31]} Kxh6 {[%emt 0:00:10]} 35. Qf3 {[%emt 0:00:46]} Qxd5 {[%emt 0:00:46]} 1-0

[Event "Centenary THK University 2019"]
[Site "Ankara"]
[Date "2019.05.17"]
[Round "1"]
[White "Elveren, Cinar"]
[Black "Ozalp, Burak"]
[Result "0-1"]
[ECO "B53"]
[WhiteElo "1553"]
[BlackElo "1901"]
[Annotator "NA RC"]
[PlyCount "88"]
[EventDate "2019.05.17"]
[EventType "swiss"]
[EventCountry "TUR"]
[SourceTitle "playchess.com"]
[Source "ChessBase"]
[SourceQuality "1"]
[TimeControl "5400+30"]

1. e4 {[%emt 0:30:30]} c5 {[%emt 0:30:30]} 2. Nf3 {[%emt 0:00:30]} d6 {[%emt 0:00:30]} 3. d4 {[%emt 0:00:30]} cxd4 {[%emt 0:00:00]} 4. Qxd4 {[%emt 0:00:00]} a6 {[%emt 0:02:00]} 5. c4 {[%emt 0:02:00]} Nc6 {[%emt 0:00:30]} 6. Qe3 {[%emt 0:01:30]} g6 {[%emt 0:01:30] B53: Sicilian: 2...d6: Lines with Qxd4} (6... Bg4 7. Nd4 g6 8. Nc3 Bg7 9. Nxc6 bxc6 10. h3 Be6 11. Be2 Nf6 12. O-O O-O 13. f4 Qa5 14. Bd2 {1-0 (50) Karjakin,S (2763)-Nepomniachtchi,I (2751) Moscow 2018}) 7. Nc3 {[%emt 0:00:30]} Bg7 {[%emt 0:03:30]} 8. Bd3 {[%emt 0:04:30]} Nf6 {[%emt 0:00:30]} 9. O-O {[%emt 0:00:30]} O-O {[%emt 0:00:30]} 10. Nd5 $146 {[%emt 0:04:30]} ({Predecessor:} 10. h3 Bd7 11. Rd1 e6 12. Bf1 Qc7 13. Qd3 Ne8 14. Bf4 {½-½ (32) Orgon,D (2027)-Joba,A (2001) Slovakia 2017}) 10... Ng4 {[%emt 0:10:30]} 11. Qe2 {[%emt 0:01:30]} Nge5 {[%emt 0:00:30]} 12. Nxe5 {[%emt 0:02:30]} Nxe5 {[%emt 0:01:30]} 13. Bc2 {[%emt 0:03:30]} b5 {[%emt 0:02:30]} 14. cxb5 {[%emt 0:03:30]} axb5 {[%emt 0:00:30]} 15. Qxb5 $2 {[%emt 0:01:30]} (15. Bg5 $11 Re8 16. Bb3) 15... Ba6 {[%emt 0:01:30]} 16. Qb3 {[%emt 0:00:30]} (16. Qb6 {was called for.} Bxf1 17. Qxd8 Rfxd8 18. Kxf1) 16... Bxf1 {[%emt 0:00:30]} 17. Kxf1 {[%emt 0:00:30]} e6 {[%emt 0:00:30]} 18. Nb4 {[%emt 0:02:30]} Qb6 {[%emt 0:03:30]} 19. Be3 {[%emt 0:01:30]} Qb5+ {[%emt 0:00:00]} 20. Kg1 {[%emt 0:00:30]} Rfb8 {[%emt 0:00:00]} 21. a3 $2 {[%emt 0:00:30]} (21. Bd2) 21... Nc6 {[%emt 0:01:30]} 22. Bd3 {[%emt 0:06:30]} Qe5 {[%emt 0:10:30]} 23. Rb1 {[%emt 0:01:30]} Bf6 {[%emt 0:08:30]} 24. Qc4 {[%emt 0:04:30]} Nxb4 {[%emt 0:03:54]} 25. axb4 {[%emt 0:00:30] [#]} d5 {[%emt 0:00:41]} ({Black should try} 25... Rc8 $1 $19 {[%cal Rc8c4]} 26. Qb5 Qxb5 27. Bxb5 Ra2) 26. Qb3 {[%emt 0:02:30]} (26. exd5 $17 exd5 27. Qb3) 26... dxe4 {[%emt 0:01:36]} 27. Bf1 {[%emt 0:02:30]} Bg5 {[%emt 0:00:43]} 28. Bxg5 {[%emt 0:04:59]} Qxg5 {[%emt 0:00:54]} 29. b5 {[%emt 0:00:13]} Qc5 {[%emt 0:02:35]} 30. Qc3 {[%emt 0:02:31]} Qb6 {[%emt 0:02:56]} 31. b4 {[%emt 0:04:46]} Ra2 {[%emt 0:01:04]} 32. Qc5 {[%emt 0:03:30]} Qxc5 {[%emt 0:01:02]} 33. bxc5 {[%emt 0:00:30]} Rc2 {[%emt 0:00:00]} 34. h3 {[%emt 0:02:40]} Rxc5 {[%emt 0:00:00]} 35. Kh2 {[%emt 0:00:28]} Rb6 {[%emt 0:00:08]} 36. Kg3 {[%emt 0:00:44]} e5 {[%emt 0:00:16]} 37. f3 {[%emt 0:04:57]} exf3 {[%emt 0:00:16]} 38. Kxf3 {[%emt 0:00:30]} f5 {[%emt 0:00:10]} 39. Ke3 $19 {[%emt 0:00:00]} Kf7 {[%emt 0:00:34]} 40. Be2 {[%emt 0:01:47]} Ke6 {[%emt 0:00:01]} 41. Bf1 {[%emt 0:00:29]} g5 {[%emt 0:00:23]} 42. g4 {[%emt 0:00:37]} f4+ {[%emt 0:00:24]} 43. Ke4 {[%emt 0:00:17]} Rc3 {[%emt 0:00:29]} 44. Re1 {[%emt 0:01:01]} Rd6 {[%emt 0:00:17]} 0-1

[Event "Centenary THK University 2019"]
[Site "Ankara"]
[Date "2019.05.17"]
[Round "1"]
[White "Yenice, Yusuf Erkan"]
[Black "Ozcan, Kadir Kutay"]
[Result "0-1"]
[ECO "B52"]
[WhiteElo "1505"]
[BlackElo "1822"]
[Annotator "NA RC"]
[PlyCount "54"]
[EventDate "2019.05.17"]
[EventType "swiss"]
[EventCountry "TUR"]
[SourceTitle "playchess.com"]
[Source "ChessBase"]
[SourceQuality "1"]
[TimeControl "5400+30"]

1. e4 {[%emt 0:30:30]} c5 {[%emt 0:30:30]} 2. Nf3 {[%emt 0:00:00]} d6 {[%emt 0:04:30]} 3. Bb5+ {[%emt 0:01:00]} Bd7 {[%emt 0:00:30]} 4. Bxd7+ {[%emt 0:00:00]} Qxd7 {[%emt 0:00:00]} 5. O-O {[%emt 0:00:00]} Nf6 {[%emt 0:00:00]} 6. Re1 {[%emt 0:03:30]} Nc6 {[%emt 0:00:30]} 7. c3 {[%emt 0:00:30]} e6 {[%emt 0:00:30]} 8. d4 {[%emt 0:00:30]} cxd4 {[%emt 0:00:30]} 9. cxd4 {[%emt 0:00:00]} d5 {[%emt 0:00:00]} 10. e5 {[%emt 0:04:00]} Ne4 {[%emt 0:00:00]} 11. a3 {[%emt 0:00:30]} Be7 {[%emt 0:00:30]} 12. Nbd2 {[%emt 0:00:30]} Nxd2 {[%emt 0:02:30]} 13. Bxd2 {[%emt 0:02:30]} O-O {[%emt 0:00:30] B52: Sicilian: Moscow Variation with 3...Bd7} 14. Qe2 {[%emt 0:03:30]} (14. Rc1 b5 15. Rc3 h6 16. Qc2 Nb8 17. Rc7 Qe8 18. Rc1 Nd7 19. Rb7 Nb6 20. Qc7 Bd8 21. Qc6 Qxc6 22. Rxc6 {0-1 (62) Gascon del Nogal,J (2470)-Pijpers,A (2479) Apeldoorn 2018}) 14... a6 {[%emt 0:00:00]} 15. Rad1 {[%emt 0:04:30]} Rac8 {[%emt 0:00:00]} 16. h4 $146 {[%emt 0:06:30]} ({Predecessor:} 16. Bg5 Bxg5 17. Nxg5 h6 18. Nh3 Ne7 19. Rc1 Nf5 20. Red1 Nxd4 {1-0 (73) Nielsen,B-Muller,H LSS email 2006}) 16... b5 {[%emt 0:00:30]} 17. h5 {[%emt 0:02:30]} Qa7 {[%emt 0:01:30]} 18. b4 {[%emt 0:13:30]} Rc7 {[%emt 0:00:30]} 19. h6 {[%emt 0:05:30]} g6 {[%emt 0:00:30]} 20. Bg5 {[%emt 0:08:07]} Nxd4 {[%emt 0:00:30]} 21. Rxd4 {[%emt 0:07:14]} Bxg5 {[%emt 0:00:30]} 22. Nxg5 $2 {[%emt 0:00:45]} (22. Rxd5 $17 {nothing else works.} exd5 23. Nxg5) 22... Qxd4 {[%emt 0:00:00]} 23. g3 {[%emt 0:01:56]} Qc3 {[%emt 0:02:00]} 24. Kg2 {[%emt 0:01:45]} Rc4 $19 {[%emt 0:01:30]} 25. Rd1 {[%emt 0:00:38]} Qxa3 {[%emt 0:01:30]} 26. Rd3 {[%emt 0:01:01]} Qxb4 {[%emt 0:00:30]} 27. Qf3 {[%emt 0:00:30]} Qe7 {[%emt 0:00:00]} 0-1

[Event "Centenary THK University 2019"]
[Site "Ankara"]
[Date "2019.05.17"]
[Round "1"]
[White "Civcer, Omer Faruk"]
[Black "Gozubuyukoglu, Selami"]
[Result "1-0"]
[ECO "B07"]
[WhiteElo "1471"]
[BlackElo "1818"]
[Annotator "NA RC"]
[PlyCount "83"]
[EventDate "2019.05.17"]
[EventType "swiss"]
[EventCountry "TUR"]
[SourceTitle "playchess.com"]
[Source "ChessBase"]
[SourceQuality "1"]
[TimeControl "5400+30"]

1. e4 {[%emt 0:30:30]} g6 {[%emt 0:30:30]} 2. d4 {[%emt 0:00:30]} Bg7 {[%emt 0:00:00]} 3. Nc3 {[%emt 0:00:00]} d6 {[%emt 0:00:00]} 4. Be3 {[%emt 0:00:00]} Nf6 {[%emt 0:00:30]} 5. f3 {[%emt 0:00:30]} O-O {[%emt 0:00:30]} 6. Qd2 {[%emt 0:00:00]} Nbd7 {[%emt 0:00:30]} 7. g4 {[%emt 0:01:00]} e5 {[%emt 0:00:30] B07: Pirc Defence: Miscellaneous Systems} 8. O-O-O {[%emt 0:00:30]} exd4 {[%emt 0:00:30]} (8... c6 9. h4 Qa5 10. h5 exd4 11. Bxd4 Ne5 12. hxg6 fxg6 13. Bxe5 dxe5 14. Bc4+ Kh8 15. Nh3 b5 {1-0 (23) Har Zvi,R (2505)-Rechlis,G (2525) Israel 1997}) 9. Bxd4 {[%emt 0:04:30]} a6 {[%emt 0:05:30]} 10. h4 {[%emt 0:00:30]} b5 {[%emt 0:00:30]} 11. h5 {[%emt 0:00:30]} Bb7 $146 {[%emt 0:01:30]} ({Predecessor:} 11... b4 12. Nce2 Bb7 13. hxg6 fxg6 14. g5 Nh5 15. Bxg7 Kxg7 {1-0 (43) Szente Varga,F (1953)-Zsiros,L (1958) Kecskemet 2011}) 12. hxg6 {[%emt 0:03:30]} fxg6 {[%emt 0:04:30]} 13. Nh3 {[%emt 0:02:30]} Ne5 {[%emt 0:02:30]} 14. Be2 {[%emt 0:08:30]} Qe7 {[%emt 0:03:30]} 15. Nf4 {[%emt 0:16:30]} Qf7 $1 {[%emt 0:03:30]} 16. Bxe5 {[%emt 0:08:30]} dxe5 {[%emt 0:00:30]} 17. Nd3 {[%emt 0:06:06]} Ne8 {[%emt 0:04:30]} 18. Kb1 {[%emt 0:02:06]} (18. Nc5 $16 Nd6 19. Kb1 (19. Nxb7 Nxb7 20. Qd5 Qxd5 $14)) 18... Rd8 {[%emt 0:00:30]} 19. Qe3 {[%emt 0:00:37]} Nd6 {[%emt 0:01:30]} 20. Nc5 {[%emt 0:00:52]} Bc8 {[%emt 0:02:30]} (20... c6 $14) 21. Nd5 {[%emt 0:02:38]} c6 {[%emt 0:12:30]} 22. Nb4 {[%emt 0:01:33]} Nc4 {[%emt 0:07:43]} 23. Qc3 {[%emt 0:00:44]} Rxd1+ {[%emt 0:01:47]} 24. Rxd1 {[%emt 0:00:17]} Nb6 {[%emt 0:00:13]} 25. Nxc6 {[%emt 0:00:40]} Be6 {[%emt 0:00:55]} 26. b3 {[%emt 0:02:04]} ({Don't take} 26. Nxe5 $6 Bxa2+ 27. Ka1 Bxe5 $16) 26... Rc8 $2 {[%emt 0:01:00]} (26... Bc8 {was worth a try.} 27. a4 (27. Nxe5 $2 Qc7 $19) 27... Qf6) 27. Nd8 {[%emt 0:01:05]} Qe7 {[%emt 0:06:19]} 28. Ndxe6 {[%emt 0:00:45]} Qxe6 {[%emt 0:00:10]} 29. Nxe6 {[%emt 0:00:18]} Rxc3 {[%emt 0:00:03]} 30. Rd6 {[%emt 0:00:00]} Re3 {[%emt 0:04:05]} 31. Rxb6 {[%emt 0:01:10]} Rxe2 {[%emt 0:00:03]} 32. Rxa6 {[%emt 0:00:00]} h5 {[%emt 0:01:32]} 33. Ra7 $18 {[%emt 0:01:57]} Bf6 {[%emt 0:01:39]} 34. g5 {[%emt 0:00:07]} Bd8 {[%emt 0:01:02]} (34... Bh8 $142 35. Ra8+ Kh7 36. Nf8+ Kg7) 35. Nxd8 {[%emt 0:01:24]} h4 {[%emt 0:00:30]} 36. Rd7 {[%emt 0:00:30]} h3 {[%emt 0:00:30]} 37. Rd1 {[%emt 0:00:00]} h2 {[%emt 0:00:00]} 38. Rh1 {[%emt 0:01:30]} Rg2 {[%emt 0:00:10]} 39. Kb2 {[%emt 0:00:00]} Kf8 {[%emt 0:00:07]} 40. Nc6 {[%emt 0:00:00]} Ke8 {[%emt 0:00:42]} 41. Nxe5 {[%emt 0:00:02]} Rxg5 {[%emt 0:00:00]} 42. Ng4 {[%emt 0:00:49]} 1-0